[Event "Early-Titled-Tuesday-Blitz-January-30-2024"]
[Site "Chess.com"]
[Date "2024.01.30"]
[Round "4"]
[White "tolia123"]
[Black "Talent-OF-Slovenia"]
[Result "0-1"]
[WhiteElo "2127"]
[BlackElo "2473"]
[TimeControl "180+1"]
[EndTime "8:39:37 PST"]
[Termination "Talent-OF-Slovenia won by checkmate"]

1. d4 {[%clk 0:03:00.9]} 1... c6 {[%clk 0:02:58.4]} 2. Nc3 {[%clk 0:02:54.3]}
2... d5 {[%clk 0:02:58]} 3. Bf4 {[%clk 0:02:54.4]} 3... Nf6 {[%clk 0:02:56.7]}
4. e3 {[%clk 0:02:53.9]} 4... Bf5 {[%clk 0:02:54.7]} 5. f3 {[%clk 0:02:54.1]}
5... e6 {[%clk 0:02:53.4]} 6. g4 {[%clk 0:02:54.2]} 6... Bg6 {[%clk 0:02:53.7]}
7. h4 {[%clk 0:02:54.9]} 7... h5 {[%clk 0:02:53.1]} 8. g5 {[%clk 0:02:55.5]}
8... Nfd7 {[%clk 0:02:52.7]} 9. e4 {[%clk 0:02:56.1]} 9... Bb4 {[%clk
0:02:51.8]} 10. Qd3 {[%clk 0:02:54.9]} 10... c5 {[%clk 0:02:43.2]} 11. O-O-O
{[%clk 0:02:31]} 11... Nc6 {[%clk 0:02:37.1]} 12. Nb5 {[%clk 0:02:19.1]} 12...
O-O {[%clk 0:02:34.9]} 13. Bd6 {[%clk 0:02:00.6]} 13... c4 {[%clk 0:02:23.9]}
14. Qe3 {[%clk 0:01:54.2]} 14... Bxd6 {[%clk 0:02:18.6]} 15. Nxd6 {[%clk
0:01:55.1]} 15... Nb6 {[%clk 0:02:17.5]} 16. Nxb7 {[%clk 0:01:49.1]} 16... Qc7
{[%clk 0:02:01.3]} 17. Nc5 {[%clk 0:01:48.9]} 17... e5 {[%clk 0:01:45.6]} 18.
dxe5 {[%clk 0:01:37.6]} 18... d4 {[%clk 0:01:42.3]} 19. Qa3 {[%clk 0:01:27.9]}
19... Qxe5 {[%clk 0:01:32.5]} 20. Nh3 {[%clk 0:01:20.2]} 20... Qe7 {[%clk
0:01:15.7]} 21. Nf4 {[%clk 0:01:15.2]} 21... a5 {[%clk 0:01:06.6]} 22. Nd5
{[%clk 0:01:04.2]} 22... Nxd5 {[%clk 0:01:06.5]} 23. exd5 {[%clk 0:01:05.1]}
23... Nb4 {[%clk 0:01:06.3]} 24. Ne4 {[%clk 0:00:54.4]} 24... Bxe4 {[%clk
0:01:05.8]} 25. fxe4 {[%clk 0:00:55.3]} 25... Qxe4 {[%clk 0:01:05.9]} 26. Rh2
{[%clk 0:00:55.2]} 26... Qf4+ {[%clk 0:01:04.9]} 27. Rhd2 {[%clk 0:00:53.8]}
27... c3 {[%clk 0:01:01.8]} 28. bxc3 {[%clk 0:00:54.7]} 28... dxc3 {[%clk
0:01:02.7]} 29. Qxc3 {[%clk 0:00:43.9]} 29... Nxa2+ {[%clk 0:01:01.5]} 30. Kb2
{[%clk 0:00:44.4]} 30... Nxc3 {[%clk 0:01:02.4]} 31. Kxc3 {[%clk 0:00:44.7]}
31... Rac8+ {[%clk 0:01:00.6]} 32. Kd3 {[%clk 0:00:45]} 32... Rfe8 {[%clk
0:01:00.8]} 33. Re2 {[%clk 0:00:42.4]} 33... Qg3+ {[%clk 0:00:55.7]} 34. Kd2
{[%clk 0:00:42]} 34... Qc3+ {[%clk 0:00:56.4]} 35. Kc1 {[%clk 0:00:42.1]} 35...
Rxe2 {[%clk 0:00:57.3]} 36. Bxe2 {[%clk 0:00:42.5]} 36... Qxc2# {[%clk 0:00:58]}
0-1

[Event "Early-Titled-Tuesday-Blitz-January-30-2024"]
[Site "Chess.com"]
[Date "2024.01.30"]
[Round "4"]
[White "Hovik_Hayrapetyan"]
[Black "Yurasova_Daria"]
[Result "1-0"]
[WhiteElo "2772"]
[BlackElo "2448"]
[TimeControl "180+1"]
[EndTime "8:39:40 PST"]
[Termination "Hovik_Hayrapetyan won by resignation"]

1. d4 {[%clk 0:03:00.9]} 1... d5 {[%clk 0:02:47.2]} 2. c4 {[%clk 0:03:00.6]}
2... dxc4 {[%clk 0:02:44.8]} 3. Nf3 {[%clk 0:03:00.8]} 3... Nf6 {[%clk
0:02:44.5]} 4. e3 {[%clk 0:03:00.5]} 4... a6 {[%clk 0:02:43.9]} 5. Bxc4 {[%clk
0:02:55.3]} 5... b5 {[%clk 0:02:43.9]} 6. Be2 {[%clk 0:02:52]} 6... e6 {[%clk
0:02:44.3]} 7. a4 {[%clk 0:02:51.7]} 7... b4 {[%clk 0:02:44.1]} 8. Nbd2 {[%clk
0:02:51.7]} 8... Bb7 {[%clk 0:02:41.8]} 9. b3 {[%clk 0:02:50.4]} 9... Nbd7
{[%clk 0:02:42]} 10. Bb2 {[%clk 0:02:50.5]} 10... Be7 {[%clk 0:02:41.1]} 11. Nc4
{[%clk 0:02:50.7]} 11... Kf8 {[%clk 0:02:38.5]} 12. O-O {[%clk 0:02:38.8]} 12...
Kg8 {[%clk 0:02:33.3]} 13. Rc1 {[%clk 0:02:32.1]} 13... c5 {[%clk 0:02:22.8]}
14. Nfe5 {[%clk 0:02:27.1]} 14... Nf8 {[%clk 0:02:12.2]} 15. dxc5 {[%clk
0:02:18.3]} 15... Bxc5 {[%clk 0:02:13.1]} 16. Qxd8 {[%clk 0:02:17.1]} 16... Rxd8
{[%clk 0:02:07.4]} 17. Na5 {[%clk 0:02:18]} 17... Rd2 {[%clk 0:01:47.1]} 18.
Nxb7 {[%clk 0:02:13.4]} 18... Rxe2 {[%clk 0:01:43.2]} 19. Nd3 {[%clk 0:02:00.4]}
19... Be7 {[%clk 0:01:35]} 20. Rfd1 {[%clk 0:01:50.9]} 20... Ne4 {[%clk
0:01:23.9]} 21. Kf1 {[%clk 0:01:29.4]} 21... Rd2 {[%clk 0:01:19.5]} 22. f3
{[%clk 0:01:29.7]} 22... Rxd1+ {[%clk 0:01:15.5]} 23. Rxd1 {[%clk 0:01:30.6]}
23... Nc3 {[%clk 0:01:14.5]} 24. Bxc3 {[%clk 0:01:26.4]} 24... bxc3 {[%clk
0:01:14.6]} 25. Rc1 {[%clk 0:01:25.7]} 25... Bf6 {[%clk 0:01:12]} 26. Nbc5
{[%clk 0:01:25.4]} 26... g6 {[%clk 0:01:08.5]} 27. Nxa6 {[%clk 0:01:18.7]} 27...
Kg7 {[%clk 0:01:06.8]} 28. Nac5 {[%clk 0:01:17.7]} 28... e5 {[%clk 0:00:45.9]}
29. e4 {[%clk 0:01:13.9]} 29... Bg5 {[%clk 0:00:32.6]} 30. Rxc3 {[%clk
0:01:12.6]} 30... f6 {[%clk 0:00:28.3]} 31. b4 {[%clk 0:01:07.4]} 1-0

[Event "Early-Titled-Tuesday-Blitz-January-30-2024"]
[Site "Chess.com"]
[Date "2024.01.30"]
[Round "4"]
[White "wannabe2700"]
[Black "Zohid6"]
[Result "0-1"]
[WhiteElo "2614"]
[BlackElo "2861"]
[TimeControl "180+1"]
[EndTime "8:39:41 PST"]
[Termination "Zohid6 won on time"]

1. b3 {[%clk 0:03:00.9]} 1... e5 {[%clk 0:02:59.4]} 2. Bb2 {[%clk 0:03:01.8]}
2... Nc6 {[%clk 0:03:00]} 3. e3 {[%clk 0:03:01.8]} 3... Nf6 {[%clk 0:02:59.5]}
4. Bb5 {[%clk 0:03:01.9]} 4... Bd6 {[%clk 0:02:58.7]} 5. Na3 {[%clk 0:03:00.8]}
5... a6 {[%clk 0:02:56.7]} 6. Bxc6 {[%clk 0:03:00.3]} 6... dxc6 {[%clk
0:02:56.9]} 7. Nc4 {[%clk 0:03:01.2]} 7... Qe7 {[%clk 0:02:56.8]} 8. Ne2 {[%clk
0:03:01]} 8... O-O {[%clk 0:02:56.7]} 9. O-O {[%clk 0:03:00.6]} 9... b5 {[%clk
0:02:54.8]} 10. Nxd6 {[%clk 0:03:00]} 10... cxd6 {[%clk 0:02:55.7]} 11. f4
{[%clk 0:03:00]} 11... Nd5 {[%clk 0:02:53.3]} 12. f5 {[%clk 0:02:51.9]} 12... f6
{[%clk 0:02:50.7]} 13. e4 {[%clk 0:02:48.2]} 13... Nb6 {[%clk 0:02:50.5]} 14. g4
{[%clk 0:02:31.7]} 14... d5 {[%clk 0:02:49.9]} 15. d3 {[%clk 0:02:29.8]} 15...
Rd8 {[%clk 0:02:44.1]} 16. Ng3 {[%clk 0:02:18]} 16... Bb7 {[%clk 0:02:41.9]} 17.
Bc1 {[%clk 0:02:14.2]} 17... c5 {[%clk 0:02:37.4]} 18. g5 {[%clk 0:01:47.6]}
18... dxe4 {[%clk 0:02:33.7]} 19. gxf6 {[%clk 0:01:43.6]} 19... Qxf6 {[%clk
0:02:32.8]} 20. Qg4 {[%clk 0:01:32.6]} 20... exd3 {[%clk 0:02:24.6]} 21. Nh5
{[%clk 0:01:27]} 21... Qf7 {[%clk 0:02:24.4]} 22. Bh6 {[%clk 0:01:26.1]} 22...
Rd4 {[%clk 0:02:23.1]} 23. Qg5 {[%clk 0:01:22.1]} 23... Rd7 {[%clk 0:02:10.3]}
24. Kf2 {[%clk 0:00:39]} 24... Rf8 {[%clk 0:02:07.7]} 25. Nxg7 {[%clk 0:00:35]}
25... Qxg7 {[%clk 0:02:08.6]} 26. Bxg7 {[%clk 0:00:34.4]} 26... Rxg7 {[%clk
0:02:09.5]} 27. Qh6 {[%clk 0:00:19.7]} 27... Rg2+ {[%clk 0:02:08.8]} 28. Ke1
{[%clk 0:00:20.1]} 28... d2+ {[%clk 0:02:08.3]} 29. Kd1 {[%clk 0:00:20.2]} 29...
Nd5 {[%clk 0:02:07.6]} 30. Qh3 {[%clk 0:00:14]} 30... Kh8 {[%clk 0:01:59.3]} 31.
f6 {[%clk 0:00:10.6]} 31... b4 {[%clk 0:01:58.3]} 32. Qxg2 {[%clk 0:00:06.3]}
32... Nc3+ {[%clk 0:01:56.9]} 33. Kxd2 {[%clk 0:00:07.2]} 33... Bxg2 {[%clk
0:01:57.4]} 34. Rf5 {[%clk 0:00:05.6]} 34... Be4 {[%clk 0:01:56.8]} 35. Rxe5
{[%clk 0:00:05.4]} 35... Rxf6 {[%clk 0:01:56.8]} 36. Rg1 {[%clk 0:00:04.2]}
36... Bg6 {[%clk 0:01:56.8]} 37. Rg2 {[%clk 0:00:03.1]} 37... Rf8 {[%clk
0:01:55.9]} 38. a4 {[%clk 0:00:02]} 38... Rd8+ {[%clk 0:01:52.6]} 39. Ke3 {[%clk
0:00:02.1]} 39... Nd5+ {[%clk 0:01:48]} 40. Kf3 {[%clk 0:00:02.1]} 40... Rf8+
{[%clk 0:01:45.8]} 41. Kg3 {[%clk 0:00:02.3]} 41... Nc3 {[%clk 0:01:45.5]} 0-1

[Event "Early-Titled-Tuesday-Blitz-January-30-2024"]
[Site "Chess.com"]
[Date "2024.01.30"]
[Round "4"]
[White "GelmanAlexander"]
[Black "cristianserban1"]
[Result "0-1"]
[WhiteElo "2783"]
[BlackElo "2586"]
[TimeControl "180+1"]
[EndTime "8:39:47 PST"]
[Termination "cristianserban1 won by checkmate"]

1. c4 {[%clk 0:03:00.9]} 1... Nf6 {[%clk 0:02:59.1]} 2. Nf3 {[%clk 0:03:01]}
2... e6 {[%clk 0:02:56.6]} 3. d3 {[%clk 0:03:01.1]} 3... d5 {[%clk 0:02:56.4]}
4. Nbd2 {[%clk 0:03:01.4]} 4... b6 {[%clk 0:02:53.8]} 5. e3 {[%clk 0:03:00.4]}
5... dxc4 {[%clk 0:02:51.4]} 6. Nxc4 {[%clk 0:02:59.5]} 6... Be7 {[%clk
0:02:37.1]} 7. a3 {[%clk 0:02:59.6]} 7... O-O {[%clk 0:02:36.9]} 8. b3 {[%clk
0:02:59.8]} 8... Bb7 {[%clk 0:02:36.8]} 9. Bb2 {[%clk 0:03:00.2]} 9... c5 {[%clk
0:02:37.4]} 10. Qc2 {[%clk 0:02:59]} 10... Nc6 {[%clk 0:02:35.5]} 11. Be2 {[%clk
0:02:58.8]} 11... Rc8 {[%clk 0:02:35.3]} 12. Rg1 {[%clk 0:02:58.7]} 12... b5
{[%clk 0:02:31.9]} 13. Ncd2 {[%clk 0:02:58.3]} 13... Nd7 {[%clk 0:02:25.2]} 14.
g4 {[%clk 0:02:58.3]} 14... Bf6 {[%clk 0:02:25.6]} 15. g5 {[%clk 0:02:58.7]}
15... Bxb2 {[%clk 0:02:25]} 16. Qxb2 {[%clk 0:02:59.6]} 16... Qc7 {[%clk
0:02:19.4]} 17. h4 {[%clk 0:02:59.7]} 17... Nde5 {[%clk 0:02:19.2]} 18. h5
{[%clk 0:03:00.1]} 18... Rfd8 {[%clk 0:02:03.9]} 19. h6 {[%clk 0:02:11.1]} 19...
g6 {[%clk 0:01:58.1]} 20. Ne4 {[%clk 0:02:07]} 20... Nxf3+ {[%clk 0:01:23.3]}
21. Bxf3 {[%clk 0:02:06.8]} 21... Ne5 {[%clk 0:01:24.2]} 22. Nf6+ {[%clk
0:01:56.3]} 22... Kh8 {[%clk 0:01:24.4]} 23. Be2 {[%clk 0:01:57]} 23... Bf3
{[%clk 0:01:23.6]} 24. Rd1 {[%clk 0:01:50.4]} 24... c4 {[%clk 0:01:03.9]} 25.
bxc4 {[%clk 0:01:39.6]} 25... bxc4 {[%clk 0:01:03.2]} 26. dxc4 {[%clk
0:01:12.8]} 26... Rxd1+ {[%clk 0:01:03]} 27. Kxd1 {[%clk 0:01:13.3]} 27... Rd8+
{[%clk 0:00:34.6]} 28. Ke1 {[%clk 0:01:13.2]} 28... Bxe2 {[%clk 0:00:08.9]} 29.
Kxe2 {[%clk 0:01:10.7]} 29... Qxc4+ {[%clk 0:00:08.3]} 30. Ke1 {[%clk
0:01:05.2]} 30... Nf3# {[%clk 0:00:08.3]} 0-1

[Event "Early-Titled-Tuesday-Blitz-January-30-2024"]
[Site "Chess.com"]
[Date "2024.01.30"]
[Round "4"]
[White "FGHSMN"]
[Black "Skatchkov_V"]
[Result "1-0"]
[WhiteElo "2893"]
[BlackElo "2614"]
[TimeControl "180+1"]
[EndTime "8:39:49 PST"]
[Termination "FGHSMN won on time"]

1. b3 {[%clk 0:03:00.9]} 1... d5 {[%clk 0:02:58.9]} 2. Bb2 {[%clk 0:03:00.9]}
2... Nf6 {[%clk 0:02:58.9]} 3. Nf3 {[%clk 0:03:00]} 3... Bf5 {[%clk 0:02:55.6]}
4. Nh4 {[%clk 0:02:58.6]} 4... Bc8 {[%clk 0:02:29.6]} 5. e3 {[%clk 0:02:56.9]}
5... c6 {[%clk 0:02:28.6]} 6. c4 {[%clk 0:02:52.9]} 6... Bg4 {[%clk 0:02:21.8]}
7. Qc2 {[%clk 0:02:48]} 7... e6 {[%clk 0:02:21.1]} 8. h3 {[%clk 0:02:46.6]} 8...
Bh5 {[%clk 0:02:20.6]} 9. g4 {[%clk 0:02:46]} 9... Bg6 {[%clk 0:02:20]} 10. Nxg6
{[%clk 0:02:46.3]} 10... hxg6 {[%clk 0:02:20.9]} 11. Bg2 {[%clk 0:02:46.4]}
11... Nbd7 {[%clk 0:02:21.1]} 12. d4 {[%clk 0:02:41.5]} 12... Bb4+ {[%clk
0:01:43.1]} 13. Nc3 {[%clk 0:02:40.7]} 13... Rc8 {[%clk 0:01:35.1]} 14. a3
{[%clk 0:02:39.3]} 14... Bd6 {[%clk 0:01:31.1]} 15. c5 {[%clk 0:02:32.8]} 15...
Bb8 {[%clk 0:01:30]} 16. f4 {[%clk 0:02:32.5]} 16... g5 {[%clk 0:00:42.5]} 17.
fxg5 {[%clk 0:02:28.7]} 17... Bg3+ {[%clk 0:00:42.7]} 18. Kd2 {[%clk 0:02:26.6]}
18... Ne4+ {[%clk 0:00:40.5]} 19. Bxe4 {[%clk 0:02:21]} 19... dxe4 {[%clk
0:00:38.6]} 20. Nxe4 {[%clk 0:02:21.9]} 20... Bc7 {[%clk 0:00:32.1]} 21. Raf1
{[%clk 0:02:19.4]} 21... b6 {[%clk 0:00:22.4]} 22. Kc1 {[%clk 0:02:17.6]} 22...
Qe7 {[%clk 0:00:20.8]} 23. h4 {[%clk 0:02:10.6]} 23... a5 {[%clk 0:00:19]} 24.
h5 {[%clk 0:02:09.7]} 24... a4 {[%clk 0:00:19.1]} 25. b4 {[%clk 0:02:09]} 25...
bxc5 {[%clk 0:00:19.2]} 26. dxc5 {[%clk 0:02:09.2]} 26... Be5 {[%clk 0:00:19.8]}
27. Bxe5 {[%clk 0:02:08]} 27... Nxe5 {[%clk 0:00:19.6]} 28. Nd6+ {[%clk
0:02:08.1]} 28... Kd7 {[%clk 0:00:20.4]} 29. Nxc8 {[%clk 0:02:07.4]} 29... Kxc8
{[%clk 0:00:20.4]} 30. Rd1 {[%clk 0:02:08]} 30... Qxg5 {[%clk 0:00:20.6]} 31.
Qe4 {[%clk 0:02:04.8]} 31... Re8 {[%clk 0:00:17.8]} 32. Rd6 {[%clk 0:02:04.3]}
32... Kc7 {[%clk 0:00:17.6]} 33. Rhd1 {[%clk 0:02:00.8]} 33... Qf6 {[%clk
0:00:18.1]} 34. Qd4 {[%clk 0:01:57.1]} 34... Re7 {[%clk 0:00:18.7]} 35. Rd8
{[%clk 0:01:50.6]} 35... Kb7 {[%clk 0:00:12.1]} 36. Kb1 {[%clk 0:01:49.1]} 36...
Qg5 {[%clk 0:00:04.1]} 37. b5 {[%clk 0:01:44]} 37... cxb5 {[%clk 0:00:02.8]} 38.
Qd6 {[%clk 0:01:43.3]} 38... Nc6 {[%clk 0:00:02.1]} 39. Rd7+ {[%clk 0:01:41.8]}
1-0

[Event "Early-Titled-Tuesday-Blitz-January-30-2024"]
[Site "Chess.com"]
[Date "2024.01.30"]
[Round "4"]
[White "Grischuk"]
[Black "Sanyura"]
[Result "1-0"]
[WhiteElo "3079"]
[BlackElo "2633"]
[TimeControl "180+1"]
[EndTime "8:39:50 PST"]
[Termination "Grischuk won by checkmate"]

1. d4 {[%clk 0:03:00.9]} 1... Nf6 {[%clk 0:02:47.2]} 2. c4 {[%clk 0:03:00.8]}
2... g6 {[%clk 0:02:47.1]} 3. g3 {[%clk 0:02:57.6]} 3... Bg7 {[%clk 0:02:46.9]}
4. Bg2 {[%clk 0:02:57.4]} 4... d6 {[%clk 0:02:47.1]} 5. Nc3 {[%clk 0:02:58]}
5... Nbd7 {[%clk 0:02:46.7]} 6. Nf3 {[%clk 0:02:58.3]} 6... e5 {[%clk
0:02:46.7]} 7. O-O {[%clk 0:02:58.4]} 7... exd4 {[%clk 0:02:46.5]} 8. Nxd4
{[%clk 0:02:58.3]} 8... O-O {[%clk 0:02:46.9]} 9. e4 {[%clk 0:02:53.9]} 9... Nc5
{[%clk 0:02:46.9]} 10. h3 {[%clk 0:02:50.1]} 10... Re8 {[%clk 0:02:46.2]} 11.
Re1 {[%clk 0:02:50.1]} 11... Bd7 {[%clk 0:02:46.3]} 12. Rb1 {[%clk 0:02:46.6]}
12... a5 {[%clk 0:02:45.5]} 13. b3 {[%clk 0:02:46.3]} 13... Qc8 {[%clk
0:02:41.1]} 14. Kh2 {[%clk 0:02:31.2]} 14... h5 {[%clk 0:02:41.1]} 15. Rb2
{[%clk 0:02:01.1]} 15... h4 {[%clk 0:00:32.8]} 16. g4 {[%clk 0:01:55.1]} 16...
Bxg4 {[%clk 0:00:23.4]} 17. hxg4 {[%clk 0:01:56]} 17... Nxg4+ {[%clk 0:00:24]}
18. Kg1 {[%clk 0:01:49.5]} 18... Ne5 {[%clk 0:00:22.6]} 19. Re3 {[%clk
0:01:30.4]} 19... Ng4 {[%clk 0:00:12.6]} 20. Rh3 {[%clk 0:01:21.6]} 20... Ne6
{[%clk 0:00:07.5]} 21. Qxg4 {[%clk 0:01:09.9]} 21... Nxd4 {[%clk 0:00:05.9]} 22.
Qxh4 {[%clk 0:01:06.7]} 22... a4 {[%clk 0:00:04.2]} 23. Nd5 {[%clk 0:01:03.4]}
23... axb3 {[%clk 0:00:02.8]} 24. Qh7+ {[%clk 0:01:01.2]} 24... Kf8 {[%clk
0:00:02.6]} 25. Bh6 {[%clk 0:01:02]} 25... Ne6 {[%clk 0:00:01.7]} 26. Qh8#
{[%clk 0:01:02.1]} 1-0

[Event "Early-Titled-Tuesday-Blitz-January-30-2024"]
[Site "Chess.com"]
[Date "2024.01.30"]
[Round "4"]
[White "Boundless_Strike"]
[Black "stasOR4ik"]
[Result "0-1"]
[WhiteElo "2630"]
[BlackElo "2427"]
[TimeControl "180+1"]
[EndTime "8:39:51 PST"]
[Termination "stasOR4ik won on time"]

1. d4 {[%clk 0:02:59.7]} 1... Nf6 {[%clk 0:02:59.8]} 2. f3 {[%clk 0:02:59.5]}
2... d5 {[%clk 0:02:59.6]} 3. e4 {[%clk 0:02:59.6]} 3... dxe4 {[%clk 0:02:59.4]}
4. Nc3 {[%clk 0:02:59.8]} 4... exf3 {[%clk 0:02:58.9]} 5. Nxf3 {[%clk
0:03:00.7]} 5... c5 {[%clk 0:02:59.4]} 6. d5 {[%clk 0:02:59.9]} 6... Bg4 {[%clk
0:02:59]} 7. h3 {[%clk 0:02:51.1]} 7... Bh5 {[%clk 0:02:58.1]} 8. g4 {[%clk
0:02:45.4]} 8... Bg6 {[%clk 0:02:58.2]} 9. Bf4 {[%clk 0:02:26.9]} 9... a6 {[%clk
0:02:52.2]} 10. Qe2 {[%clk 0:02:12.7]} 10... Nbd7 {[%clk 0:02:49.7]} 11. O-O-O
{[%clk 0:02:09]} 11... Qa5 {[%clk 0:02:48.9]} 12. Ne5 {[%clk 0:01:56.4]} 12...
Nxe5 {[%clk 0:02:32.1]} 13. Qxe5 {[%clk 0:01:27.3]} 13... Nd7 {[%clk 0:02:31.7]}
14. Qe1 {[%clk 0:01:17.1]} 14... h5 {[%clk 0:02:24.1]} 15. g5 {[%clk 0:01:12.1]}
15... Bf5 {[%clk 0:02:20]} 16. Rh2 {[%clk 0:00:38.9]} 16... Qb4 {[%clk
0:01:57.4]} 17. Rf2 {[%clk 0:00:32.9]} 17... g6 {[%clk 0:01:50.6]} 18. a3 {[%clk
0:00:28.1]} 18... Qb6 {[%clk 0:01:45.6]} 19. Re2 {[%clk 0:00:27.3]} 19... O-O-O
{[%clk 0:01:28.5]} 20. Na4 {[%clk 0:00:21.1]} 20... Qa7 {[%clk 0:01:24.9]} 21.
Bg2 {[%clk 0:00:06.1]} 21... b5 {[%clk 0:01:09.6]} 22. Nc3 {[%clk 0:00:03.2]}
22... Nb6 {[%clk 0:00:56.8]} 0-1

[Event "Early-Titled-Tuesday-Blitz-January-30-2024"]
[Site "Chess.com"]
[Date "2024.01.30"]
[Round "4"]
[White "kai_nov"]
[Black "HelvertHernandez"]
[Result "1-0"]
[WhiteElo "2274"]
[BlackElo "1866"]
[TimeControl "180+1"]
[EndTime "8:39:57 PST"]
[Termination "kai_nov won by resignation"]

1. d4 {[%clk 0:02:55.6]} 1... Nf6 {[%clk 0:02:58.1]} 2. Nc3 {[%clk 0:02:55.3]}
2... g6 {[%clk 0:02:57.3]} 3. Bg5 {[%clk 0:02:54.4]} 3... Bg7 {[%clk 0:02:56.7]}
4. Nf3 {[%clk 0:02:53.1]} 4... O-O {[%clk 0:02:55.6]} 5. e4 {[%clk 0:02:51.2]}
5... d6 {[%clk 0:02:54.3]} 6. Bd3 {[%clk 0:02:48.8]} 6... Bg4 {[%clk 0:02:53.2]}
7. O-O {[%clk 0:02:46.3]} 7... Nbd7 {[%clk 0:02:52.2]} 8. h3 {[%clk 0:02:44.8]}
8... Bxf3 {[%clk 0:02:51.3]} 9. Qxf3 {[%clk 0:02:41.5]} 9... e5 {[%clk
0:02:50.6]} 10. d5 {[%clk 0:02:37.6]} 10... Nc5 {[%clk 0:02:48.8]} 11. b4 {[%clk
0:02:32.4]} 11... Nxd3 {[%clk 0:02:47.6]} 12. cxd3 {[%clk 0:02:31.4]} 12... Rc8
{[%clk 0:02:41.1]} 13. b5 {[%clk 0:02:28.7]} 13... c5 {[%clk 0:02:37]} 14. bxc6
{[%clk 0:02:27.1]} 14... bxc6 {[%clk 0:02:36.6]} 15. dxc6 {[%clk 0:02:26.6]}
15... h6 {[%clk 0:02:30.3]} 16. Bxf6 {[%clk 0:02:18.4]} 16... Qxf6 {[%clk
0:02:24.3]} 17. Qxf6 {[%clk 0:02:10.8]} 17... Bxf6 {[%clk 0:02:23.9]} 18. Nd5
{[%clk 0:02:09.9]} 18... Bd8 {[%clk 0:02:09.9]} 19. c7 {[%clk 0:02:06]} 19...
Rxc7 {[%clk 0:01:50.5]} 20. Nxc7 {[%clk 0:02:04.7]} 20... Bxc7 {[%clk
0:01:50.6]} 21. Rac1 {[%clk 0:02:01.8]} 21... Bb6 {[%clk 0:01:50.3]} 22. Rc6
{[%clk 0:01:59.4]} 22... Bc5 {[%clk 0:01:50]} 23. Rb1 {[%clk 0:01:56.3]} 23...
f5 {[%clk 0:01:44.7]} 24. Rb7 {[%clk 0:01:41.5]} 24... fxe4 {[%clk 0:01:39.6]}
25. dxe4 {[%clk 0:01:39]} 25... Bxf2+ {[%clk 0:01:28.5]} 26. Kh2 {[%clk
0:01:35.4]} 26... Rf7 {[%clk 0:01:21.3]} 27. Rc8+ {[%clk 0:01:28.2]} 27... Kg7
{[%clk 0:01:20.8]} 28. Rxf7+ {[%clk 0:01:25.5]} 28... Kxf7 {[%clk 0:01:20.5]}
29. Rc7+ {[%clk 0:01:23.4]} 29... Ke6 {[%clk 0:01:17.2]} 30. a4 {[%clk
0:01:18.3]} 30... d5 {[%clk 0:01:10.1]} 31. Rc6+ {[%clk 0:01:15.9]} 31... Kd7
{[%clk 0:01:08.5]} 32. exd5 {[%clk 0:01:14.5]} 32... e4 {[%clk 0:01:08.7]} 33.
Rxg6 {[%clk 0:01:02.4]} 33... e3 {[%clk 0:01:04.5]} 34. Re6 {[%clk 0:01:02.3]}
34... h5 {[%clk 0:01:03.9]} 35. g4 {[%clk 0:00:49.3]} 35... h4 {[%clk
0:00:51.3]} 36. g5 {[%clk 0:00:47.4]} 1-0